[Event "II Cerrado Promocion FNA 2022"]
[Site "Pamplona"]
[Date "2022.01.03"]
[Round "1.2"]
[White "Pinto, Daniel"]
[Black "Labiano Hernandez, Juan"]
[Result "0-1"]
[ECO "B23"]
[WhiteElo "2215"]
[BlackElo "2210"]
[Annotator "ChessBase"]
[PlyCount "156"]
[EventDate "2022.01.02"]
[EventType "tourn"]
[EventCountry "ESP"]
[SourceTitle "playchess.com"]
[Source "ChessBase"]
[SourceQuality "1"]
[TimeControl "5400+30"]

1. e4 {[%emt 0:00:15]} Nf6 {[%emt 0:00:12]} 2. Nc3 {[%emt 0:00:20]} e5 {[%emt 0:00:06]} 3. g3 {[%emt 0:00:14]} d5 {[%emt 0:02:54]} 4. exd5 {[%emt 0:00:11]} c6 {[%emt 0:00:20]} 5. d4 {[%emt 0:03:33]} exd4 {[%emt 0:01:35]} 6. Qxd4 {[%emt 0:00:30]} cxd5 {[%emt 0:00:31]} 7. Bg5 {[%emt 0:16:37]} Be7 {[%emt 0:02:30]} 8. Bg2 {[%emt 0:01:07]} O-O {[%emt 0:05:56]} 9. Nge2 {[%emt 0:00:23]} Nc6 {[%emt 0:00:21]} 10. Qd2 {[%emt 0:01:30]} d4 {[%emt 0:03:49]} 11. Bxf6 {[%emt 0:07:57]} Bxf6 {[%emt 0:00:26]} 12. Nd5 {[%emt 0:00:33]} Bg5 {[%emt 0:03:36]} 13. f4 {[%emt 0:00:38]} Be6 {[%emt 0:03:23]} 14. c4 {[%emt 0:08:47]} dxc3 {[%emt 0:01:26]} 15. bxc3 {[%emt 0:00:49]} Be7 {[%emt 0:05:24]} 16. O-O {[%emt 0:15:03]} Bc5+ {[%emt 0:00:33]} 17. Kh1 {[%emt 0:00:12]} Ne7 {[%emt 0:03:11]} 18. c4 {[%emt 0:08:19]} Bxd5 {[%emt 0:05:49]} 19. cxd5 {[%emt 0:00:27]} Qd7 {[%emt 0:05:47]} 20. f5 {[%emt 0:11:33]} Nxf5 {[%emt 0:12:35]} 21. Qc2 {[%emt 0:11:27]} Nd4 {[%emt 0:02:06]} 22. Nxd4 {[%emt 0:01:19]} Bxd4 {[%emt 0:00:09]} 23. Rad1 {[%emt 0:00:10]} Be5 {[%emt 0:01:24]} 24. Qf5 {[%emt 0:02:11]} Qxf5 {[%emt 0:00:09]} 25. Rxf5 {[%emt 0:00:06]} Bd6 {[%emt 0:00:03]} 26. Rff1 {[%emt 0:03:22]} Rfe8 {[%emt 0:00:42]} 27. Rfe1 {[%emt 0:00:11]} Rxe1+ {[%emt 0:00:19]} 28. Rxe1 {[%emt 0:00:04]} Kf8 {[%emt 0:00:34]} 29. Bh3 {[%emt 0:00:20]} Rd8 {[%emt 0:02:12]} 30. Rc1 {[%emt 0:00:33]} Ke7 {[%emt 0:00:35]} 31. Bc8 {[%emt 0:05:39]} b6 {[%emt 0:00:45]} 32. Bb7 {[%emt 0:00:21]} Bc5 {[%emt 0:00:21]} 33. a4 {[%emt 0:00:48]} Kd6 {[%emt 0:00:07]} 34. Bc6 {[%emt 0:00:11]} Rb8 {[%emt 0:02:09]} 35. Rf1 {[%emt 0:00:30]} Rf8 {[%emt 0:00:18]} 36. g4 {[%emt 0:00:31]} Bd4 {[%emt 0:00:18]} 37. Kg2 {[%emt 0:00:17]} f6 {[%emt 0:00:29]} 38. Kf3 {[%emt 0:01:39]} Be5 {[%emt 0:00:20]} 39. Ke4 {[%emt 0:00:21]} Rf7 {[%emt 0:00:37]} 40. g5 {[%emt 0:00:54]} Bxh2 {[%emt 0:02:26]} 41. Rh1 {[%emt 0:00:24]} Be5 {[%emt 0:00:14]} 42. gxf6 {[%emt 0:00:25]} gxf6 {[%emt 0:00:10]} 43. Kf5 {[%emt 0:00:27]} Rg7 {[%emt 0:00:26]} 44. Rh5 {[%emt 0:00:06]} a6 {[%emt 0:01:41]} 45. Ke4 {[%emt 0:00:48]} Rg4+ {[%emt 0:00:52]} 46. Kf3 {[%emt 0:00:06]} Rg7 {[%emt 0:00:39]} 47. Ke4 {[%emt 0:00:05]} Kc5 {[%emt 0:00:57]} 48. Kf5 {[%emt 0:00:03]} Re7 {[%emt 0:00:31]} 49. Rh1 {[%emt 0:00:24]} Bd4 {[%emt 0:00:41]} 50. Rc1+ {[%emt 0:00:13]} Kd6 {[%emt 0:00:06]} 51. Rc2 {[%emt 0:02:21]} Re5+ {[%emt 0:00:26]} 52. Kf4 {[%emt 0:00:04]} Rg5 {[%emt 0:00:15]} 53. Bb7 {[%emt 0:00:42]} Be5+ {[%emt 0:00:15]} 54. Kf3 {[%emt 0:00:03]} Rg3+ {[%emt 0:00:41]} 55. Ke4 {[%emt 0:00:37]} Rg4+ {[%emt 0:00:53]} 56. Kf3 {[%emt 0:00:00]} Rf4+ {[%emt 0:00:49]} 57. Ke3 {[%emt 0:00:07]} Rxa4 {[%emt 0:00:06]} 58. Rc6+ {[%emt 0:01:15]} Kd7 {[%emt 0:00:42]} 59. Bc8+ {[%emt 0:01:04]} Ke7 {[%emt 0:00:42]} 60. Ke2 {[%emt 0:00:48]} b5 {[%emt 0:02:03]} 61. Bxa6 {[%emt 0:00:27]} b4 {[%emt 0:00:14]} 62. Re6+ {[%emt 0:00:16]} Kd8 {[%emt 0:01:19]} 63. Bc4 {[%emt 0:00:42]} Ra8 {[%emt 0:03:05]} 64. Bd3 {[%emt 0:00:37]} h6 {[%emt 0:01:53]} 65. Bb5 {[%emt 0:00:12]} Rb8 {[%emt 0:00:49]} 66. Ba4 {[%emt 0:00:17]} Kc7 {[%emt 0:00:52]} 67. Rc6+ {[%emt 0:00:51]} Kb7 {[%emt 0:00:11]} 68. Re6 {[%emt 0:00:16]} Rd8 {[%emt 0:01:43]} 69. Bc6+ {[%emt 0:00:56]} Kc7 {[%emt 0:00:53]} 70. Re7+ {[%emt 0:00:21]} Kd6 {[%emt 0:00:12]} 71. Rb7 {[%emt 0:00:04]} Kc5 {[%emt 0:00:13]} 72. Kd3 {[%emt 0:00:02]} Rb8 {[%emt 0:00:32]} 73. Rxb8 {[%emt 0:02:05]} Bxb8 {[%emt 0:00:02]} 74. Kc2 {[%emt 0:00:00]} Kd4 {[%emt 0:00:28]} 75. Kb3 {[%emt 0:00:00]} Bd6 {[%emt 0:00:05]} 76. Bd7 {[%emt 0:00:39]} Kxd5 {[%emt 0:00:06]} 77. Bg4 {[%emt 0:00:04]} Ke4 {[%emt 0:00:09]} 78. Kc4 {[%emt 0:00:06]} f5 {[%emt 0:00:04]} 0-1

[Event "II Cerrado Promocion FNA 2022"]
[Site "Pamplona"]
[Date "2022.01.03"]
[Round "1.3"]
[White "Minzer, Claudio Javier"]
[Black "Alonso Bouza, Julio Javier"]
[Result "1/2-1/2"]
[ECO "D14"]
[WhiteElo "2442"]
[BlackElo "2396"]
[Annotator "ChessBase"]
[PlyCount "62"]
[EventDate "2022.01.02"]
[EventType "tourn"]
[EventCountry "ESP"]
[SourceTitle "playchess.com"]
[Source "ChessBase"]
[SourceQuality "1"]
[TimeControl "5400+30"]

1. d4 {[%emt 1:31:00]} d5 {[%emt 1:31:00]} 2. c4 {[%emt 0:00:30]} c6 {[%emt 0:00:30]} 3. cxd5 {[%emt 0:00:30]} cxd5 {[%emt 0:00:30]} 4. Nc3 {[%emt 0:00:30]} Nf6 {[%emt 0:00:30]} 5. Nf3 {[%emt 0:00:30]} Nc6 {[%emt 0:00:30]} 6. Bf4 {[%emt 0:00:30]} Bf5 {[%emt 0:00:30]} 7. e3 {[%emt 0:00:30]} e6 {[%emt 0:00:30]} 8. Bd3 {[%emt 0:00:30]} Bxd3 {[%emt 0:00:30]} 9. Qxd3 {[%emt 0:00:30]} Bd6 {[%emt 0:00:30]} 10. Bxd6 {[%emt 0:00:30]} Qxd6 {[%emt 0:00:30]} 11. O-O {[%emt 0:00:30]} O-O {[%emt 0:00:30]} 12. Qb5 {[%emt 0:00:30]} a6 {[%emt 0:00:30]} 13. Qe2 {[%emt 0:00:30]} h6 {[%emt 0:00:30]} 14. Rfc1 {[%emt 0:00:30]} Rfc8 {[%emt 0:00:30]} 15. h3 {[%emt 0:00:30]} Nd7 {[%emt 0:00:30]} 16. Na4 {[%emt 0:00:30]} Ne7 {[%emt 0:00:30]} 17. Qd1 {[%emt 0:00:30]} Rxc1 {[%emt 0:00:30]} 18. Rxc1 {[%emt 0:00:30]} Rc8 {[%emt 0:00:30]} 19. Rxc8+ {[%emt 0:00:30]} Nxc8 {[%emt 0:00:30]} 20. Qc2 {[%emt 0:00:30]} Ne7 {[%emt 0:00:30]} 21. a3 {[%emt 0:00:30]} Qc6 {[%emt 0:00:30]} 22. Qxc6 {[%emt 0:00:30]} Nxc6 {[%emt 0:00:30]} 23. Nd2 {[%emt 0:00:30]} Kf8 {[%emt 0:00:30]} 24. Kf1 {[%emt 0:00:30]} Ke7 {[%emt 0:00:30]} 25. Ke2 {[%emt 0:00:30]} Kd6 {[%emt 0:00:30]} 26. Kd3 {[%emt 0:00:30]} f5 {[%emt 0:00:30]} 27. Nc3 {[%emt 0:00:30]} e5 {[%emt 0:00:30]} 28. f3 {[%emt 0:00:30]} e4+ {[%emt 0:00:30]} 29. fxe4 {[%emt 0:00:30]} fxe4+ {[%emt 0:00:30]} 30. Ke2 {[%emt 0:00:30]} Nf6 {[%emt 0:00:30]} 31. b4 {[%emt 0:00:30]} Na7 {[%emt 0:00:30]} 1/2-1/2

[Event "II Cerrado Promocion FNA 2022"]
[Site "Pamplona"]
[Date "2022.01.03"]
[Round "1.4"]
[White "Luque Saiz, Andres"]
[Black "Habans Aguerrea, Javier"]
[Result "0-1"]
[ECO "B30"]
[WhiteElo "2288"]
[BlackElo "2298"]
[Annotator "ChessBase"]
[PlyCount "100"]
[EventDate "2022.01.02"]
[EventType "tourn"]
[EventCountry "ESP"]
[SourceTitle "playchess.com"]
[Source "ChessBase"]
[SourceQuality "1"]
[TimeControl "5400+30"]

1. e4 {[%emt 0:00:22]} c5 {[%emt 0:00:10]} 2. Nf3 {[%emt 0:00:09]} Nc6 {[%emt 0:00:09]} 3. Bb5 {[%emt 0:00:19]} Nf6 {[%emt 0:00:10]} 4. e5 {[%emt 0:04:41]} Nd5 {[%emt 0:01:17]} 5. Nc3 {[%emt 0:00:21]} Nc7 {[%emt 0:00:35]} 6. Bxc6 {[%emt 0:00:58]} dxc6 {[%emt 0:00:03]} 7. d3 {[%emt 0:05:37]} g6 {[%emt 0:02:31]} 8. Bf4 {[%emt 0:09:16]} Bg7 {[%emt 0:02:01]} 9. h3 {[%emt 0:01:37]} Ne6 {[%emt 0:05:56]} 10. Bg3 {[%emt 0:02:48]} O-O {[%emt 0:00:11]} 11. Qd2 {[%emt 0:02:51]} Nd4 {[%emt 0:05:48]} 12. Nh2 {[%emt 0:04:37]} Bf5 {[%emt 0:12:09]} 13. Rc1 {[%emt 0:15:15]} Qa5 {[%emt 0:07:09]} 14. O-O {[%emt 0:12:01]} c4 {[%emt 0:00:30]} 15. f4 {[%emt 0:04:53]} Rad8 {[%emt 0:02:28]} 16. Nf3 {[%emt 0:03:22]} Qb6 {[%emt 0:05:24]} 17. Nxd4 {[%emt 0:01:28]} Qxd4+ {[%emt 0:00:52]} 18. Bf2 {[%emt 0:00:50]} Qd7 {[%emt 0:00:02]} 19. d4 {[%emt 0:00:53]} h5 {[%emt 0:02:08]} 20. Qe3 {[%emt 0:04:17]} b5 {[%emt 0:01:54]} 21. Rfd1 {[%emt 0:02:45]} b4 {[%emt 0:00:31]} 22. Ne2 {[%emt 0:00:52]} Bh6 {[%emt 0:01:10]} 23. c3 {[%emt 0:12:17]} Rb8 {[%emt 0:01:42]} 24. b3 {[%emt 0:02:59]} cxb3 {[%emt 0:01:00]} 25. axb3 {[%emt 0:00:17]} bxc3 {[%emt 0:00:06]} 26. Rxc3 {[%emt 0:02:32]} Be6 {[%emt 0:00:02]} 27. Ng3 {[%emt 0:03:01]} Bd5 {[%emt 0:00:33]} 28. Re1 {[%emt 0:01:48]} Qe6 {[%emt 0:01:18]} 29. Ne4 {[%emt 0:00:33]} Qf5 {[%emt 0:00:21]} 30. Bg3 {[%emt 0:00:23]} Rb4 {[%emt 0:00:53]} 31. Nc5 {[%emt 0:00:35]} e6 {[%emt 0:11:40]} 32. Ra1 {[%emt 0:00:38]} Rd8 {[%emt 0:00:02]} 33. Na6 {[%emt 0:01:04]} Rb5 {[%emt 0:01:00]} 34. Nc5 {[%emt 0:00:35]} a5 {[%emt 0:00:00]} 35. Rd1 {[%emt 0:00:33]} Rdb8 {[%emt 0:01:33]} 36. Rf1 {[%emt 0:00:31]} a4 {[%emt 0:02:24]} 37. bxa4 {[%emt 0:01:02]} Rb2 {[%emt 0:00:01]} 38. Rf2 {[%emt 0:00:00]} Rxf2 {[%emt 0:01:12]} 39. Qxf2 {[%emt 0:00:05]} Rb1+ {[%emt 0:00:01]} 40. Kh2 {[%emt 0:00:14]} Ra1 {[%emt 0:09:23]} 41. Rc2 {[%emt 0:01:07]} h4 {[%emt 0:00:14]} 42. Bxh4 {[%emt 0:00:22]} Bxf4+ {[%emt 0:00:02]} 43. Bg3 {[%emt 0:00:19]} Be3 {[%emt 0:13:31]} 44. Qxe3 {[%emt 0:00:50]} Qxc2 {[%emt 0:00:01]} 45. Bf2 {[%emt 0:00:11]} Qd1 {[%emt 0:01:56]} 46. Kg3 {[%emt 0:00:47]} Qf1 {[%emt 0:01:02]} 47. Ne4 {[%emt 0:00:33]} Bxe4 {[%emt 0:00:03]} 48. Qxe4 {[%emt 0:00:04]} Ra3+ {[%emt 0:00:13]} 49. Be3 {[%emt 0:00:25]} Qe2 {[%emt 0:00:20]} 50. Kf4 {[%emt 0:00:59]} g5+ {[%emt 0:00:10]} 0-1

[Event "II Cerrado Promocion FNA 2022"]
[Site "Pamplona"]
[Date "2022.01.03"]
[Round "1.5"]
[White "Garrido Outon, Alex"]
[Black "Urriza Iricibar, Pablo"]
[Result "1-0"]
[ECO "B81"]
[WhiteElo "2412"]
[BlackElo "2286"]
[Annotator "ChessBase"]
[PlyCount "65"]
[EventDate "2022.01.02"]
[EventType "tourn"]
[EventCountry "ESP"]
[SourceTitle "playchess.com"]
[Source "ChessBase"]
[SourceQuality "1"]
[TimeControl "5400+30"]

1. e4 {[%emt 0:00:11]} c5 {[%emt 0:00:09]} 2. Nf3 {[%emt 0:00:28]} d6 {[%emt 0:00:08]} 3. d4 {[%emt 0:00:06]} cxd4 {[%emt 0:00:02]} 4. Nxd4 {[%emt 0:00:05]} Nf6 {[%emt 0:00:11]} 5. Nc3 {[%emt 0:00:05]} e6 {[%emt 0:00:18]} 6. g4 {[%emt 0:01:21]} h6 {[%emt 0:00:13]} 7. Rg1 {[%emt 0:06:33]} Nc6 {[%emt 0:00:31]} 8. Be3 {[%emt 0:01:31]} a6 {[%emt 0:10:00]} 9. Be2 {[%emt 0:09:03]} Be7 {[%emt 0:10:50]} 10. Qd2 {[%emt 0:10:27]} Nxd4 {[%emt 0:03:19]} 11. Qxd4 {[%emt 0:00:19]} e5 {[%emt 0:01:31]} 12. Qd2 {[%emt 0:07:33]} Be6 {[%emt 0:01:42]} 13. Bf3 {[%emt 0:06:26]} b5 {[%emt 0:09:40]} 14. h4 {[%emt 0:07:05]} b4 {[%emt 0:16:56]} 15. Na4 {[%emt 0:06:24]} Rb8 {[%emt 0:03:01]} 16. g5 {[%emt 0:10:58]} hxg5 {[%emt 0:00:41]} 17. hxg5 {[%emt 0:00:29]} Ng4 {[%emt 0:10:37]} 18. g6 {[%emt 0:02:11]} fxg6 {[%emt 0:07:58]} 19. O-O-O {[%emt 0:11:56]} Nxe3 {[%emt 0:00:27]} 20. Qxe3 {[%emt 0:00:11]} Bf7 {[%emt 0:08:30]} 21. Be2 {[%emt 0:02:17]} a5 {[%emt 0:03:56]} 22. Kb1 {[%emt 0:02:41]} Qc7 {[%emt 0:00:48]} 23. b3 {[%emt 0:01:59]} Rh4 {[%emt 0:01:28]} 24. Rg4 {[%emt 0:01:27]} Rh2 {[%emt 0:03:10]} 25. Qg3 {[%emt 0:00:44]} Rh6 {[%emt 0:00:27]} 26. Qe3 {[%emt 0:03:43]} Rh2 {[%emt 0:00:28]} 27. Rgg1 {[%emt 0:00:42]} Rh4 {[%emt 0:00:35]} 28. Rh1 {[%emt 0:00:57]} g5 {[%emt 0:01:36]} 29. Bd3 {[%emt 0:00:43]} Kf8 {[%emt 0:01:22]} 30. Nb2 {[%emt 0:01:30]} Qc5 {[%emt 0:03:00]} 31. Qe2 {[%emt 0:00:19]} Rc8 {[%emt 0:01:13]} 32. Bc4 {[%emt 0:00:12]} Bh5 {[%emt 0:01:08]} 33. Rxh4 {[%emt 0:00:39]} 1-0

[Event "II Cerrado Promocion FNA 2022"]
[Site "Pamplona"]
[Date "2022.01.03"]
[Round "2.2"]
[White "Habans Aguerrea, Javier"]
[Black "Garrido Outon, Alex"]
[Result "0-1"]
[ECO "E09"]
[WhiteElo "2298"]
[BlackElo "2412"]
[Annotator "ChessBase"]
[PlyCount "164"]
[EventDate "2022.01.02"]
[EventType "tourn"]
[EventCountry "ESP"]
[SourceTitle "playchess.com"]
[Source "ChessBase"]
[SourceQuality "1"]
[TimeControl "5400+30"]

1. Nf3 {[%emt 0:00:07]} d5 {[%emt 0:01:15]} 2. d4 {[%emt 0:00:21]} Nf6 {[%emt 0:00:15]} 3. c4 {[%emt 0:01:25]} e6 {[%emt 0:00:12]} 4. g3 {[%emt 0:00:12]} Be7 {[%emt 0:00:37]} 5. Bg2 {[%emt 0:00:18]} O-O {[%emt 0:00:13]} 6. Qc2 {[%emt 0:00:14]} c6 {[%emt 0:00:13]} 7. Nbd2 {[%emt 0:05:36]} b6 {[%emt 0:01:09]} 8. O-O {[%emt 0:00:10]} Bb7 {[%emt 0:00:13]} 9. Ne5 {[%emt 0:07:14]} Nbd7 {[%emt 0:06:19]} 10. e4 {[%emt 0:09:54]} Nxe5 {[%emt 0:16:00]} 11. dxe5 {[%emt 0:00:03]} Nd7 {[%emt 0:00:07]} 12. exd5 {[%emt 0:08:15]} cxd5 {[%emt 0:00:22]} 13. cxd5 {[%emt 0:00:29]} Rc8 {[%emt 0:02:20]} 14. Qa4 {[%emt 0:10:50]} Nc5 {[%emt 0:04:51]} 15. Qg4 {[%emt 0:01:24]} Bxd5 {[%emt 0:01:15]} 16. Nf3 {[%emt 0:05:58]} Be4 {[%emt 0:07:29]} 17. Nh4 {[%emt 0:17:36]} Qd5 {[%emt 0:15:07]} 18. Re1 {[%emt 0:18:09]} Bxh4 {[%emt 0:07:57]} 19. Bxe4 {[%emt 0:10:33]} Nxe4 {[%emt 0:00:37]} 20. Rxe4 {[%emt 0:01:42]} f5 {[%emt 0:02:18]} 21. exf6 {[%emt 0:00:00]} Bxf6 {[%emt 0:00:07]} 22. Rxe6 {[%emt 0:00:29]} Rc2 {[%emt 0:25:59]} 23. Be3 {[%emt 0:00:13]} Kf7 {[%emt 0:01:17]} 24. Re4 {[%emt 0:00:36]} Rd8 {[%emt 0:01:18]} 25. Re1 {[%emt 0:00:14]} Rxb2 {[%emt 0:00:29]} 26. a4 {[%emt 0:00:44]} Rb3 {[%emt 0:01:13]} 27. Rc4 {[%emt 0:00:23]} Rd7 {[%emt 0:01:08]} 28. a5 {[%emt 0:00:42]} h5 {[%emt 0:01:02]} 29. Qe2 {[%emt 0:00:32]} Rb2 {[%emt 0:00:52]} 30. Qf1 {[%emt 0:00:21]} Qxa5 {[%emt 0:00:32]} 31. Rec1 {[%emt 0:00:35]} Qf5 {[%emt 0:01:38]} 32. Rc8 {[%emt 0:00:34]} Rb5 {[%emt 0:00:47]} 33. Qc4+ {[%emt 0:00:31]} Rbd5 {[%emt 0:00:16]} 34. Qb3 {[%emt 0:00:01]} Kg6 {[%emt 0:01:03]} 35. h4 {[%emt 0:00:45]} Rd1+ {[%emt 0:00:51]} 36. Rxd1 {[%emt 0:00:48]} Rxd1+ {[%emt 0:00:05]} 37. Qxd1 {[%emt 0:00:01]} Qxc8 {[%emt 0:00:01]} 38. Qd3+ {[%emt 0:00:21]} Qf5 {[%emt 0:00:27]} 39. Qa6 {[%emt 0:00:31]} Qd7 {[%emt 0:00:44]} 40. Kh2 {[%emt 0:00:01]} Kh7 {[%emt 0:00:25]} 41. Kg1 {[%emt 0:00:06]} Kg6 {[%emt 0:00:04]} 42. Kf1 {[%emt 0:00:12]} Kh7 {[%emt 0:00:07]} 43. Ke2 {[%emt 0:00:11]} g6 {[%emt 0:00:12]} 44. Ke1 {[%emt 0:00:43]} Bg7 {[%emt 0:00:04]} 45. Ke2 {[%emt 0:00:04]} Bh6 {[%emt 0:01:03]} 46. f4 {[%emt 0:01:13]} Bg7 {[%emt 0:00:28]} 47. Bf2 {[%emt 0:01:08]} Bf8 {[%emt 0:01:00]} 48. f5 {[%emt 0:01:29]} gxf5 {[%emt 0:00:48]} 49. Be3 {[%emt 0:00:31]} Bh6 {[%emt 0:00:40]} 50. Bf2 {[%emt 0:00:17]} Qd2+ {[%emt 0:01:13]} 51. Kf1 {[%emt 0:00:12]} Qd7 {[%emt 0:00:03]} 52. Ke2 {[%emt 0:00:05]} Kg6 {[%emt 0:00:35]} 53. Kf1 {[%emt 0:01:09]} Bg7 {[%emt 0:00:04]} 54. Ke2 {[%emt 0:00:40]} Be5 {[%emt 0:00:46]} 55. Kf3 {[%emt 0:00:36]} Qc7 {[%emt 0:01:10]} 56. Kg2 {[%emt 0:00:16]} Bd6 {[%emt 0:00:18]} 57. Qa2 {[%emt 0:00:38]} Qf7 {[%emt 0:00:21]} 58. Qa6 {[%emt 0:00:34]} Kh7 {[%emt 0:00:26]} 59. Qe2 {[%emt 0:00:33]} Bc5 {[%emt 0:00:41]} 60. Be1 {[%emt 0:00:10]} Bd4 {[%emt 0:00:45]} 61. Qa6 {[%emt 0:00:32]} Qd5+ {[%emt 0:00:21]} 62. Kh2 {[%emt 0:00:15]} Qd7 {[%emt 0:00:47]} 63. Bd2 {[%emt 0:00:19]} Qe7 {[%emt 0:00:28]} 64. Bf4 {[%emt 0:00:18]} Kg6 {[%emt 0:00:26]} 65. Qc4 {[%emt 0:01:23]} Qe4 {[%emt 0:00:32]} 66. Qg8+ {[%emt 0:00:18]} Bg7 {[%emt 0:00:01]} 67. Qb8 {[%emt 0:00:24]} Qe7 {[%emt 0:00:20]} 68. Bc7 {[%emt 0:00:49]} Kh7 {[%emt 0:00:50]} 69. Qxa7 {[%emt 0:00:30]} Bd4 {[%emt 0:00:05]} 70. Qb7 {[%emt 0:00:32]} Qe2+ {[%emt 0:01:12]} 71. Kh1 {[%emt 0:00:30]} Qf1+ {[%emt 0:00:09]} 72. Kh2 {[%emt 0:00:01]} Qe2+ {[%emt 0:00:32]} 73. Kh1 {[%emt 0:00:06]} Qe4+ {[%emt 0:00:09]} 74. Qxe4 {[%emt 0:00:10]} fxe4 {[%emt 0:00:03]} 75. Kg2 {[%emt 0:01:08]} Kg6 {[%emt 0:00:03]} 76. Kf1 {[%emt 0:00:51]} Kf5 {[%emt 0:00:13]} 77. Ke2 {[%emt 0:00:01]} b5 {[%emt 0:00:20]} 78. Bd6 {[%emt 0:00:05]} Be5 {[%emt 0:00:31]} 79. Be7 {[%emt 0:00:19]} Bxg3 {[%emt 0:00:24]} 80. Ke3 {[%emt 0:00:00]} Be5 {[%emt 0:00:32]} 81. Bb4 {[%emt 0:00:10]} Bc7 {[%emt 0:01:24]} 82. Bc5 {[%emt 0:00:03]} Bd8 {[%emt 0:00:11]} 0-1

[Event "II Cerrado Promocion FNA 2022"]
[Site "Pamplona"]
[Date "2022.01.03"]
[Round "2.3"]
[White "Alonso Bouza, Julio Javier"]
[Black "Luque Saiz, Andres"]
[Result "1/2-1/2"]
[ECO "B13"]
[WhiteElo "2396"]
[BlackElo "2288"]
[Annotator "ChessBase"]
[PlyCount "120"]
[EventDate "2022.01.02"]
[EventType "tourn"]
[EventCountry "ESP"]
[SourceTitle "playchess.com"]
[Source "ChessBase"]
[SourceQuality "1"]
[TimeControl "5400+30"]

1. e4 {[%emt 1:31:00]} c6 {[%emt 1:31:00]} 2. d4 {[%emt 0:00:30]} d5 {[%emt 0:00:30]} 3. exd5 {[%emt 0:00:30]} cxd5 {[%emt 0:00:30]} 4. c4 {[%emt 0:00:30]} Nf6 {[%emt 0:00:30]} 5. Nc3 {[%emt 0:00:30]} Nc6 {[%emt 0:00:30]} 6. Nf3 {[%emt 0:00:30]} Be6 {[%emt 0:00:30]} 7. c5 {[%emt 0:00:30]} g6 {[%emt 0:00:30]} 8. h3 {[%emt 0:00:30]} Bg7 {[%emt 0:00:30]} 9. Bb5 {[%emt 0:00:30]} Bd7 {[%emt 0:00:30]} 10. O-O {[%emt 0:00:30]} O-O {[%emt 0:00:30]} 11. Re1 {[%emt 0:00:30]} a6 {[%emt 0:00:30]} 12. Bxc6 {[%emt 0:00:30]} Bxc6 {[%emt 0:00:30]} 13. Ne5 {[%emt 0:00:30]} Nd7 {[%emt 0:00:30]} 14. f4 {[%emt 0:00:30]} Re8 {[%emt 0:00:30]} 15. b4 {[%emt 0:00:30]} f6 {[%emt 0:00:30]} 16. Nxc6 {[%emt 0:00:30]} bxc6 {[%emt 0:00:30]} 17. Qa4 {[%emt 0:00:30]} Qc8 {[%emt 0:00:30]} 18. Be3 {[%emt 0:00:30]} Qc7 {[%emt 0:00:30]} 19. Re2 {[%emt 0:00:30]} e5 {[%emt 0:00:30]} 20. Rf1 {[%emt 0:00:30]} Nf8 {[%emt 0:00:30]} 21. f5 {[%emt 0:00:30]} gxf5 {[%emt 0:00:30]} 22. Rxf5 {[%emt 0:00:30]} Ne6 {[%emt 0:00:30]} 23. Qd1 {[%emt 0:00:30]} Qd7 {[%emt 0:00:30]} 24. Rf1 {[%emt 0:00:30]} Rab8 {[%emt 0:00:30]} 25. a3 {[%emt 0:00:30]} Re7 {[%emt 0:00:30]} 26. Ref2 {[%emt 0:00:30]} exd4 {[%emt 0:00:30]} 27. Bxd4 {[%emt 0:00:30]} Nxd4 {[%emt 0:00:30]} 28. Qxd4 {[%emt 0:00:30]} Rbe8 {[%emt 0:00:30]} 29. Rf3 {[%emt 0:00:30]} Re1 {[%emt 0:00:30]} 30. Qd3 {[%emt 0:00:30]} Rxf1+ {[%emt 0:00:30]} 31. Rxf1 {[%emt 0:00:30]} Qe6 {[%emt 0:00:30]} 32. Nd1 {[%emt 0:00:30]} Qe2 {[%emt 0:00:30]} 33. Qf5 {[%emt 0:00:30]} Re6 {[%emt 0:00:30]} 34. Nf2 {[%emt 0:00:30]} Qe3 {[%emt 0:00:30]} 35. Kh1 {[%emt 0:00:30]} Qe5 {[%emt 0:00:30]} 36. Qb1 {[%emt 0:00:30]} Qg3 {[%emt 0:00:30]} 37. Ng4 {[%emt 0:00:30]} Re4 {[%emt 0:00:30]} 38. a4 {[%emt 0:00:30]} f5 {[%emt 0:00:30]} 39. Nh2 {[%emt 0:00:30]} Be5 {[%emt 0:00:30]} 40. Nf3 {[%emt 0:00:30]} Bc7 {[%emt 0:00:30]} 41. b5 {[%emt 0:00:30]} axb5 {[%emt 0:00:30]} 42. axb5 {[%emt 0:00:30]} Re2 {[%emt 0:00:30]} 43. Rg1 {[%emt 0:00:30]} Kh8 {[%emt 0:00:30]} 44. Qxf5 {[%emt 0:00:30]} cxb5 {[%emt 0:00:30]} 45. Qc8+ {[%emt 0:00:30]} Kg7 {[%emt 0:00:30]} 46. Qd7+ {[%emt 0:00:30]} Kh8 {[%emt 0:00:30]} 47. Qxd5 {[%emt 0:00:30]} Rf2 {[%emt 0:00:30]} 48. Qf7 {[%emt 0:00:30]} h6 {[%emt 0:00:30]} 49. Qf8+ {[%emt 0:00:30]} Kh7 {[%emt 0:00:30]} 50. Qf7+ {[%emt 0:00:30]} Kh8 {[%emt 0:00:30]} 51. Qf6+ {[%emt 0:00:30]} Kh7 {[%emt 0:00:30]} 52. Qe7+ {[%emt 0:00:30]} Kh8 {[%emt 0:00:30]} 53. Qe8+ {[%emt 0:00:30]} Kh7 {[%emt 0:00:30]} 54. Qe4+ {[%emt 0:00:30]} Kh8 {[%emt 0:00:30]} 55. Qd4+ {[%emt 0:00:30]} Kh7 {[%emt 0:00:30]} 56. Qd3+ {[%emt 0:00:30]} Kh8 {[%emt 0:00:30]} 57. Qd4+ {[%emt 0:00:30]} Kh7 {[%emt 0:00:30]} 58. Qe4+ {[%emt 0:00:30]} Kh8 {[%emt 0:00:30]} 59. Qe8+ {[%emt 0:00:30]} Kh7 {[%emt 0:00:30]} 60. Qf7+ {[%emt 0:00:30]} Kh8 {[%emt 0:00:30]} 1/2-1/2